bitfinex-derivatives/quotes_ETHF0:USTF0_20250708
["timestamp","ask_amount","ask_price","bid_price","bid_amount"]
[1751964619936,29.68405397,2550.5,2550.4,3.61523623]
[1751964620343,2.28292397,2550.5,2550.4,2.48133]
[1751964620636,28.23262397,2550.5,2550.4,2.48133]
[1751964621639,29.01675397,2550.5,2550.4,1.45103]
[1751964621838,29.69905397,2550.5,2550.4,1.45103]
[1751964623438,28.91492397,2550.5,2550.4,1.45103]
[1751964624440,28.91492397,2550.5,2550.4,2.41643]
[1751964624441,28.23262397,2550.5,2550.4,2.41643]
[1751964627037,3.2078,2550.7,2550.6,0.78409]
[1751964627237,72.54772646,2551.0,2550.9,0.784]
[1751964627238,73.41179,2551.0,2550.9,0.784]
[1751964627442,73.41179,2551.0,2550.9,1.4371]
[1751964627443,101.643301,2551.0,2550.9,1.4371]
[1751964627643,101.643301,2551.0,2550.9,0.784]
[1751964627943,101.643301,2551.0,2550.9,3.16896468]
[1751964628143,101.643301,2551.0,2550.9,2.51586468]
[1751964628643,101.643301,2551.0,2550.9,3.16896468]
[1751964628943,101.643301,2551.0,2550.9,1.4371]
[1751964629944,101.641301,2551.0,2550.9,1.4371]
[1751964630446,101.641301,2551.0,2550.9,0.784]
[1751964630637,101.641301,2551.0,2550.9,1.4371]
[1751964630841,101.641301,2551.0,2550.9,0.784]
[1751964631041,101.641301,2551.0,2550.9,1.4371]
[1751964631346,100.857311,2551.0,2550.9,1.4371]
[1751964631745,39.683311,2551.0,2550.9,1.4371]
[1751964631940,40.365611,2551.0,2550.9,1.4371]
[1751964632140,37.157811,2551.0,2550.9,1.4371]
[1751964633647,37.941781,2551.0,2550.9,1.4371]
[1751964634350,37.15383871,2551.0,2550.9,1.4371]
[1751964635751,37.93780871,2551.0,2550.9,1.4371]
[1751964637850,2.29383871,2551.0,2550.9,1.4371]
[1751964638153,28.22353871,2551.0,2550.9,2.4025]
[1751964638349,3.2078,2551.2,2551.1,0.78394]
[1751964638650,30.5021,2551.2,2551.1,1.43704]
[1751964638855,30.5021,2551.2,2551.1,0.78394]
[1751964639255,31.28601,2551.2,2551.1,1.43704]
[1751964639457,31.5151,2551.2,2550.8,5.84673]
[1751964639655,0.78397,2551.1,2551.0,0.78394]
[1751964639955,2.47927,2551.1,2551.0,0.78394]
[1751964640154,3.86087,2551.1,2551.0,1.43704]
[1751964640954,3.86087,2551.1,2551.0,3.60149856]
[1751964641360,2.47927,2551.1,2551.0,3.60149856]
[1751964641550,1.46627,2551.1,2551.0,3.60149856]
[1751964641749,0.6823,2551.1,2551.0,3.60149856]
[1751964642150,27.2923,2551.1,2551.0,3.60149856]
[1751964643351,28.07624,2551.1,2551.0,3.60149856]
[1751964646762,29.08924,2551.1,2551.0,3.60149856]
[1751964647264,28.07624,2551.1,2551.0,3.60149856]
[1751964647762,29.08924,2551.1,2551.0,0.78394]
[1751964648061,0.78408,2550.8,2550.7,0.78403]
[1751964648257,29.08838,2550.8,2550.7,0.6531]
[1751964648462,0.78413,2550.6,2550.5,0.7841]
[1751964648663,29.08843,2550.6,2550.5,0.7841]
[1751964648857,0.78413,2550.5,2550.4,0.6617]
[1751964649061,0.78413,2550.5,2550.1,7.33287856]
[1751964649062,0.7842,2550.4,2550.3,0.78417]
[1751964649262,28.0755,2550.4,2550.3,1.43727]
[1751964650367,28.0755,2550.4,2550.3,3.60172856]
[1751964651668,29.0885,2550.4,2550.3,3.60172856]
[1751964653369,28.3043,2550.4,2550.3,3.60172856]
[1751964653569,27.2913,2550.4,2550.3,3.60172856]
[1751964653764,27.2913,2550.4,2550.3,4.62862856]
[1751964653964,26.609,2550.4,2550.3,4.62862856]
[1751964654667,27.3043,2550.4,2550.3,4.62862856]
[1751964654869,26.609,2550.4,2550.3,4.62862856]
[1751964655370,27.3043,2550.4,2550.3,4.62862856]
[1751964655571,26.609,2550.4,2550.3,4.62862856]
[1751964655770,27.3043,2550.4,2550.3,4.62862856]
[1751964656265,27.3043,2550.4,2550.3,3.60172856]
[1751964660574,29.10496,2550.4,2550.3,1.43727]
[1751964660872,29.10496,2550.4,2550.3,3.60172856]
[1751964661777,28.08846,2550.4,2550.3,3.60172856]
[1751964662778,29.10496,2550.4,2550.3,3.60172856]
[1751964663179,28.08846,2550.4,2550.3,3.60172856]
[1751964665079,27.3043,2550.4,2550.3,4.62862856]
[1751964665278,26.609,2550.4,2550.3,4.62862856]
[1751964665479,28.08846,2550.4,2550.3,3.60172856]
[1751964665680,29.10496,2550.4,2550.3,0.78417]
[1751964666575,0.78419,2550.3,2550.2,1.4548]
[1751964666976,0.78419,2550.3,2550.2,2.1035]
[1751964667577,0.78419,2550.3,2550.2,1.4548]
[1751964668180,2.49599,2550.3,2550.2,1.4548]
[1751964668377,2.49599,2550.3,2550.2,2.1035]
[1751964668578,2.49599,2550.3,2550.2,1.4548]
[1751964669074,0.78419,2550.3,2550.2,1.4548]
[1751964669275,2.49599,2550.3,2550.2,1.4548]
[1751964669480,2.49599,2550.3,2550.2,2.1035]
[1751964670683,0.78422,2550.2,2550.1,0.78422]
[1751964670881,28.09252,2550.2,2550.1,0.78422]
[1751964671082,29.10902,2550.2,2550.1,0.78422]
[1751964672284,29.10902,2550.2,2550.1,1.43292]
[1751964673080,27.3083,2550.2,2550.1,3.59737856]
[1751964675585,26.613,2550.2,2550.1,3.59737856]
[1751964675784,27.3083,2550.2,2550.1,3.59737856]
[1751964676086,26.613,2550.2,2550.1,3.59737856]
[1751964676285,3.2078,2550.4,2550.3,2.16445856]
[1751964676487,29.8218,2550.4,2550.3,2.45979]
[1751964676782,30.5171,2550.4,2550.3,2.45979]
[1751964677389,32.13194247,2550.4,2550.3,2.45979]
[1751964678287,5.51794247,2550.4,2550.3,2.45979]
[1751964678483,31.43664247,2550.4,2550.3,2.45979]
[1751964678688,29.8218,2550.4,2550.3,2.45979]
[1751964679281,29.8218,2550.4,2550.3,3.14579]
[1751964679886,30.5171,2550.4,2550.3,3.14579]
[1751964680186,29.8218,2550.4,2550.3,3.14579]
[1751964680686,30.462,2550.4,2550.3,3.14579]
[1751964682392,0.6402,2550.4,2550.3,3.14579]
[1751964682595,27.2532,2550.4,2550.3,3.14579]
[1751964687095,27.2532,2550.4,2550.3,2.11889]
[1751964688995,27.2532,2550.4,2550.3,3.11669]
[1751964689393,0.6402,2550.4,2550.3,3.11669]
[1751964703911,0.6402,2550.4,2550.3,1.47019]
[1751964704112,0.6402,2550.4,2550.3,2.13719]
[1751964704308,2.25780844,2550.4,2550.3,2.13719]
[1751964704511,0.6402,2550.4,2550.3,2.13719]
[1751964704803,0.6402,2550.4,2550.3,3.13499]
[1751964706099,0.6402,2550.4,2550.3,1.47019]
[1751964706300,2.25845945,2550.4,2550.3,2.13719]
[1751964706504,3.26825945,2550.4,2550.3,2.13719]
[1751964707205,2.25845945,2550.4,2550.3,2.13719]
[1751964708007,3.26825945,2550.4,2550.3,2.13719]
[1751964708708,2.25845945,2550.4,2550.3,2.13719]
[1751964709311,4.05241945,2550.4,2550.3,2.13719]
[1751964709512,4.05241945,2550.4,2550.3,1.45119]
[1751964709712,4.57825945,2550.4,2550.3,1.45119]
[1751964710012,5.36241945,2550.4,2550.3,1.45119]
[1751964710311,2.25845945,2550.4,2550.3,1.45119]
[1751964711812,2.25883736,2550.4,2550.3,1.45119]
[1751964721522,4.07579736,2550.4,2550.3,1.45119]
[1751964721825,6.05979736,2550.4,2550.3,0.78419]
[1751964722823,0.78422,2550.3,2550.2,0.78419]
[1751964723120,4.70965736,2550.3,2550.2,0.78419]
[1751964723321,3.92543736,2550.3,2550.2,0.78419]
[1751964723621,4.61503736,2550.3,2550.2,0.78419]
[1751964725224,4.61503736,2550.3,2550.2,2.51617288]
[1751964726124,5.39922736,2550.3,2550.2,2.51617288]
[1751964726928,4.61503736,2550.3,2550.2,3.17767288]
[1751964727422,5.39922736,2550.3,2550.2,3.17767288]
[1751964727823,2.30823736,2550.3,2550.2,1.44569]
[1751964728424,0.6896,2550.3,2550.2,1.44569]
[1751964732829,26.607,2550.4,2550.3,0.78419]
[1751964733122,30.73226601,2550.4,2550.3,1.44569]
[1751964733427,29.94810601,2550.4,2550.3,1.44569]
[1751964733620,30.73226601,2550.4,2550.3,0.78419]
[1751964733828,30.73226601,2550.4,2550.3,1.44569]
[1751964734027,30.73226601,2550.4,2550.3,0.78419]
[1751964735424,30.73226601,2550.4,2550.3,2.51617288]
[1751964743631,29.94810601,2550.4,2550.3,2.51617288]
[1751964744437,29.94810601,2550.4,2550.3,3.15827288]
[1751964744834,29.94810601,2550.4,2550.3,1.42629]
[1751964744835,28.87700601,2550.4,2550.3,1.42629]
[1751964746729,29.66116601,2550.4,2550.3,1.42629]
[1751964750135,0.78422,2550.3,2550.2,0.78419]
[1751964750337,3.05422601,2550.3,2550.2,0.78419]
[1751964750534,4.09102601,2550.3,2550.2,0.78419]
[1751964750734,5.43922601,2550.3,2550.2,0.78419]
[1751964750932,5.43922601,2550.3,2550.2,2.51617288]
[1751964751839,5.43922601,2550.3,2550.2,3.15827288]
[1751964752041,5.43922601,2550.3,2550.2,2.51617288]
[1751964754541,5.43922601,2550.3,2550.2,3.15827288]
[1751964754736,5.43922601,2550.3,2550.2,2.51617288]
[1751964755545,5.43922601,2550.3,2550.2,3.15827288]
[1751964755732,5.43922601,2550.3,2550.2,2.51617288]
[1751964756336,5.43922601,2550.3,2550.2,1.73198288]
[1751964756841,5.43922601,2550.3,2550.2,2.51620288]
[1751964758440,5.43922601,2550.3,2550.2,3.15830288]
[1751964758741,5.43922601,2550.3,2550.2,2.37408288]
[1751964759146,0.78425,2550.1,2550.0,3.2078]
[1751964759334,1.9607,2550.0,2549.7,0.6957]
[1751964759536,0.6513,2549.8,2549.6,0.78439]
[1751964759736,29.26150601,2549.7,2549.6,0.78439]
[1751964759930,29.91280601,2549.7,2549.6,1.42649]
[1751964760136,28.2941,2549.7,2549.6,0.78439]
[1751964760434,29.07852,2549.7,2549.6,1.42649]
[1751964761238,0.7844,2549.6,2549.5,0.6957]
[1751964761439,1.4357,2549.6,2549.5,0.6957]
[1751964761735,0.78443,2549.5,2549.4,0.78444]
[1751964762038,29.08053,2549.5,2549.4,2.09414]
[1751964762241,28.04373,2549.5,2549.4,2.09414]
[1751964762440,29.08053,2549.5,2549.4,2.09414]
[1751964764136,28.04373,2549.5,2549.4,2.09414]
[1751964764332,27.2593,2549.5,2549.4,2.09414]
[1751964764940,26.608,2549.5,2549.4,2.09414]
[1751964765140,26.608,2549.5,2549.4,3.06754]
[1751964766442,8.245,2549.8,2549.7,2.95128053]
[1751964766650,35.5063,2549.8,2549.7,3.59338053]
[1751964767747,0.6513,2549.8,2549.7,3.59338053]
[1751964767948,27.2623,2549.8,2549.7,3.59338053]
[1751964769047,30.4701,2549.8,2549.7,3.59338053]
[1751964770650,3.8591,2549.8,2549.7,3.59338053]
[1751964771150,27.2623,2549.8,2549.7,3.59338053]
[1751964771347,27.2623,2549.8,2549.7,4.25258053]
[1751964771949,27.2623,2549.8,2549.7,5.22598053]
[1751964776466,0.6513,2549.8,2549.7,5.22598053]
[1751964776762,27.2623,2549.8,2549.7,5.22598053]
[1751964777464,27.2623,2549.8,2549.7,4.25258053]
[1751964777660,28.04664,2549.8,2549.7,2.08567]
[1751964777964,27.2623,2549.8,2549.7,2.08567]
[1751964780363,28.04664,2549.8,2549.7,2.08567]
[1751964781068,27.2623,2549.8,2549.7,2.08567]
[1751964781269,28.04664,2549.8,2549.7,2.08567]
[1751964781566,27.2623,2549.8,2549.7,2.08567]
[1751964784271,28.04664,2549.8,2549.7,2.08567]
[1751964786969,27.2623,2549.8,2549.7,2.08567]
[1751964787170,28.04664,2549.8,2549.7,2.08567]
[1751964787471,27.2623,2549.8,2549.7,2.08567]
[1751964787865,28.04664,2549.8,2549.7,2.08567]
[1751964788471,27.2623,2549.8,2549.7,2.08567]
[1751964788771,0.7844,2549.7,2549.6,0.78437]
[1751964788969,3.70745119,2549.7,2549.6,0.78437]
[1751964789269,2.40245119,2549.7,2549.6,3.186575]
[1751964791670,3.75035119,2549.7,2549.6,3.186575]
[1751964792169,3.75035119,2549.7,2549.6,2.517375]
[1751964792367,5.41875119,2549.7,2549.6,2.517375]
[1751964792875,5.41875119,2549.7,2549.6,3.186575]
[1751964793371,5.41875119,2549.7,2549.6,2.402205]
[1751964793872,5.41875119,2549.7,2549.6,0.6692]
[1751964794073,5.41875119,2549.7,2549.6,2.402205]
[1751964795273,5.41875119,2549.7,2549.6,3.186605]
[1751964795776,0.7844,2549.6,2549.5,0.6449]
[1751964795977,0.78449,2549.4,2549.3,0.78446]
[1751964796275,1.49099,2549.4,2549.3,1.45366]
[1751964797875,1.49099,2549.4,2549.3,0.78446]
[1751964798076,1.49099,2549.4,2549.3,1.45366]
[1751964800178,1.49099,2549.4,2549.3,0.6692]
[1751964800373,6.83741,2549.4,2549.0,0.78456]
[1751964800678,0.78455,2549.1,2549.0,0.78456]
[1751964800877,1.44935,2549.1,2549.0,1.45216]
[1751964803374,0.78454,2549.2,2549.1,0.78455]
[1751964803682,1.44932,2549.3,2549.2,1.3533]
[1751964804475,1.44932,2549.3,2549.2,2.13779]
[1751964805177,1.44932,2549.3,2549.2,4.304833]
[1751964807079,1.44932,2549.3,2549.2,2.13779]
[1751964807279,2.50102,2549.3,2549.2,2.13779]
[1751964807677,2.50102,2549.3,2549.2,0.6857]
[1751964807879,0.78462,2549.0,2548.8,0.78464]
[1751964808077,2.50115,2548.9,2548.8,0.78464]
[1751964808377,27.39662,2549.0,2548.8,0.78464]
[1751964808378,0.78457,2549.1,2549.0,2.951593]
[1751964808579,1.44937,2549.1,2549.0,3.619193]
[1751964808777,27.2768,2549.1,2549.0,3.619193]
[1751964809777,28.06135,2549.1,2549.0,3.619193]
[1751964810176,27.2768,2549.1,2549.0,3.619193]
[1751964810382,27.2768,2549.1,2549.0,2.951593]
[1751964810583,28.06136,2549.1,2549.0,3.619193]
[1751964810784,28.06136,2549.1,2549.0,2.834643]
[1751964811082,29.11306,2549.1,2549.0,1.45219]
[1751964811680,29.11306,2549.1,2549.0,0.6676]
[1751964811881,0.78459,2549.0,2548.9,0.7846]
[1751964812186,2.50109,2549.0,2548.9,0.7846]
[1751964812679,6.88581,2549.0,2548.4,0.9748]
[1751964812886,0.78477,2548.4,2548.3,0.78478]
[1751964813087,27.39877,2548.4,2548.3,0.78478]
[1751964813288,27.39877,2548.4,2548.3,1.45238]
[1751964814185,27.39877,2548.4,2548.3,0.6676]
[1751964814686,27.39877,2548.4,2548.3,1.4524]
[1751964816080,28.06357,2548.4,2548.3,1.4524]
[1751964816676,27.2788,2548.4,2548.3,1.4524]
[1751964817683,10.08342,2548.6,2548.5,0.78474]
[1751964817889,37.36822,2548.6,2548.5,0.78474]
[1751964818281,2.50122,2548.6,2548.5,0.78474]
[1751964818487,29.12222,2548.6,2548.5,1.45234]
[1751964818687,29.12222,2548.6,2548.5,2.10294]
[1751964819188,1.44951,2548.6,2548.5,4.269963]
[1751964819891,0.78471,2548.6,2548.5,4.269963]
[1751964820090,1.44951,2548.6,2548.5,4.269963]
[1751964820791,1.44951,2548.6,2548.5,2.10292]
[1751964820993,2.50121,2548.6,2548.5,2.10292]
[1751964821994,2.50121,2548.6,2548.5,1.3182]
[1751964821995,29.15221,2548.6,2548.5,1.3182]
[1751964822594,0.7848,2548.4,2548.3,0.78478]
[1751964822796,2.5013,2548.4,2548.3,0.78478]
[1751964822994,2.5013,2548.4,2548.3,1.45238]
[1751964823296,2.5013,2548.4,2548.3,0.6676]
[1751964823490,1.4496,2548.4,2548.3,1.4524]
[1751964824697,0.7848,2548.3,2548.2,1.43441]
[1751964824897,1.4496,2548.3,2548.2,1.43441]
[1751964825098,2.5013,2548.3,2548.2,1.43441]
[1751964825295,2.5013,2548.3,2548.2,2.10201]
[1751964825798,28.0986,2548.3,2548.2,2.10203]
[1751964826095,29.1503,2548.3,2548.2,2.10203]
[1751964826995,29.1503,2548.3,2548.2,1.3172]
[1751964827191,29.1503,2548.3,2548.2,0.6496]
[1751964827592,30.4759,2548.3,2548.2,0.6496]
[1751964831202,0.78489,2548.0,2547.9,0.78491]
[1751964831497,29.16729,2548.0,2547.9,1.45191]
[1751964832004,29.16729,2548.0,2547.9,1.45192]
[1751964832203,0.78496,2547.8,2547.7,3.99277]
[1751964832398,29.15176,2547.8,2547.7,3.99277]
[1751964832998,28.12966,2547.8,2547.7,4.65977]
[1751964833603,29.15176,2547.8,2547.7,4.65977]
[1751964834202,31.5746,2547.8,2547.3,3.2078]
[1751964834401,1.8071,2547.7,2547.6,0.785]
[1751964834599,1.7078,2547.7,2547.6,1.452]
[1751964834907,2.49279,2547.7,2547.6,1.452]
[1751964835206,2.49279,2547.7,2547.6,0.785]
[1751964835803,2.49279,2547.7,2547.6,1.452]
[1751964836201,1.7078,2547.7,2547.6,1.452]
[1751964836602,2.49279,2547.7,2547.6,1.452]
[1751964837202,2.49279,2547.7,2547.6,0.785]
[1751964839507,0.6857,2547.7,2547.6,1.452]
[1751964839908,1.7078,2547.7,2547.6,0.785]
[1751964840110,2.49279,2547.7,2547.6,0.785]
[1751964840608,10.76179,2547.7,2547.6,1.452]
[1751964840905,10.76179,2547.7,2547.6,0.785]
[1751964841308,0.78507,2547.6,2547.5,0.78503]
[1751964841612,0.78508,2547.5,2547.4,0.78505]
[1751964841903,1.7078,2547.5,2547.4,1.45205]
[1751964842309,2.49288,2547.5,2547.4,0.78508]
[1751964842502,0.78508,2547.4,2547.3,3.99288]
[1751964842811,29.17788,2547.4,2547.3,4.65988]
[1751964843002,28.15578,2547.4,2547.3,4.65988]
[1751964843207,29.17788,2547.4,2547.3,3.99288]
[1751964843707,28.15578,2547.4,2547.3,3.99288]
[1751964844210,0.6857,2547.4,2547.3,4.65988]
[1751964844413,27.3677,2547.4,2547.3,6.826923]
[1751964844613,27.46708,2547.4,2547.3,6.826923]
[1751964844815,28.15278,2547.4,2547.3,6.826923]
[1751964845006,1.47078,2547.4,2547.3,6.826923]
[1751964845207,27.46608,2547.4,2547.3,6.826923]
[1751964845710,28.15178,2547.4,2547.3,6.826923]
[1751964846612,1.47078,2547.4,2547.3,6.826923]
[1751964846817,28.15078,2547.4,2547.3,6.826923]
[1751964847111,27.3657,2547.4,2547.3,7.809823]
[1751964847310,0.6857,2547.4,2547.3,7.809823]
[1751964847509,8.27,2547.6,2547.5,2.952033]
[1751964847708,34.952,2547.6,2547.5,3.619033]
[1751964848513,0.6857,2547.6,2547.5,4.601933]
[1751964848813,27.3687,2547.6,2547.5,3.619033]
[1751964850317,27.3687,2547.6,2547.5,4.601933]
[1751964850712,0.6857,2547.6,2547.5,4.601933]
[1751964850913,0.78492,2548.0,2547.9,2.951933]
[1751964851112,28.14862,2548.0,2547.9,3.618933]
[1751964851413,28.14862,2548.0,2547.9,1.45189]
[1751964852112,26.698,2548.0,2547.9,3.618933]
[1751964852310,0.78489,2548.0,2547.9,4.601833]
[1751964852512,27.48089,2548.0,2547.9,4.601833]
[1751964852814,28.16659,2548.0,2547.9,4.601833]
[1751964853017,28.17459,2548.0,2547.9,4.601833]
[1751964853212,27.3897,2548.0,2547.9,4.601833]
[1751964853413,28.17459,2548.0,2547.9,4.601833]
[1751964854611,28.17459,2548.0,2547.9,3.618933]
[1751964855015,28.17459,2548.0,2547.9,4.601833]
[1751964855215,27.3897,2548.0,2547.9,4.601833]
[1751964855617,28.17459,2548.0,2547.9,4.601833]
[1751964855816,1.47059,2548.0,2547.9,3.618933]
[1751964856115,28.16959,2548.0,2547.9,3.618933]
[1751964857813,1.47059,2548.0,2547.9,4.601833]
[1751964858020,28.16859,2548.0,2547.9,4.601833]
[1751964858718,28.16859,2548.0,2547.9,5.287133]
[1751964858918,28.16859,2548.0,2547.9,4.304233]
[1751964859717,28.16859,2548.0,2547.9,2.13719]
[1751964860418,29.79883325,2548.0,2547.9,2.13719]
[1751964860820,3.2078,2548.2,2548.1,2.951903]
[1751964861116,29.8978,2548.2,2548.1,4.631203]
[1751964861319,31.32414,2548.2,2548.1,4.631203]
[1751964861516,30.5393,2548.2,2548.1,4.631203]
[1751964862523,30.5453,2548.2,2548.1,4.631203]
[1751964862820,31.33013,2548.2,2548.1,4.631203]
[1751964863223,31.33013,2548.2,2548.1,3.648303]
[1751964863423,30.5453,2548.2,2548.1,3.648303]
[1751964865018,3.8493,2548.2,2548.1,3.648303]
[1751964865216,3.8493,2548.2,2548.1,2.52706]
[1751964865217,27.3315,2548.2,2548.1,2.52706]
[1751964866116,3.2078,2548.5,2548.4,0.78477]
[1751964866321,6.2628303,2548.5,2548.4,1.48117]
[1751964866624,31.32204,2548.5,2548.4,1.48117]
[1751964866813,31.32204,2548.5,2548.4,0.78477]
[1751964867224,31.32204,2548.5,2548.4,1.48117]
[1751964867724,32.29354,2548.5,2548.4,1.48117]
[1751964868123,29.08574,2548.5,2548.4,1.48117]
[1751964869219,29.08574,2548.5,2548.4,0.78477]
[1751964869419,30.44534,2548.5,2548.4,0.78477]
[1751964869619,30.44534,2548.5,2548.4,1.48117]
[1751964869820,30.44534,2548.5,2548.4,0.78477]
[1751964870022,29.47384,2548.5,2548.4,0.78477]
[1751964870314,29.47384,2548.5,2548.4,1.48117]
[1751964871327,30.44534,2548.5,2548.4,1.48117]
[1751964874431,31.13984,2548.5,2548.4,1.48117]
[1751964877039,2.78584,2548.5,2548.4,1.48117]
[1751964877241,29.45684,2548.5,2548.4,1.48117]
[1751964877640,0.6415,2548.5,2548.4,3.648213]
[1751964877836,27.3105,2548.5,2548.4,3.648213]
[1751964878342,65.22453,2548.6,2548.5,0.78474]
[1751964878540,91.89353,2548.6,2548.5,0.78474]
[1751964878841,91.89353,2548.6,2548.5,1.44314]
[1751964880337,93.52247554,2548.6,2548.5,1.44314]
[1751964882543,94.49397554,2548.6,2548.5,2.13954]
[1751964883234,94.49397554,2548.6,2548.5,1.44314]
[1751964883633,94.49397554,2548.6,2548.5,2.13954]
[1751964884544,94.49397554,2548.6,2548.5,1.3548]
[1751964886445,94.49397554,2548.6,2548.5,2.13954]
[1751964887253,91.28617554,2548.6,2548.5,2.13954]
[1751964887946,94.49397554,2548.6,2548.5,2.13954]
[1751964888147,94.4948438,2548.6,2548.5,1.3548]
[1751964888341,95.9033438,2548.6,2548.5,1.3548]
[1751964889349,95.9033438,2548.6,2548.5,2.13954]
[1751964889949,95.9033438,2548.6,2548.5,1.3548]
[1751964890847,93.5143238,2548.6,2548.5,5.352383]
[1751964891047,93.5143238,2548.6,2548.5,4.248883]
[1751964891246,32.2823238,2548.6,2548.5,4.248883]
[1751964891749,32.9580238,2548.6,2548.5,4.248883]
[1751964891946,32.2823238,2548.6,2548.5,4.248883]
[1751964892249,32.9580238,2548.6,2548.5,4.248883]
[1751964893053,2.3055138,2548.6,2548.5,2.08184]
[1751964893254,0.6757,2548.6,2548.5,8.48074]
[1751964893456,0.6757,2548.6,2548.5,3.48074]
[1751964894453,3.2078,2548.9,2548.8,0.78465]
[1751964895351,3.8835,2548.9,2548.8,0.78465]
[1751964895854,3.8835,2548.9,2548.8,2.951693]
[1751964896355,3.8835,2548.9,2548.8,3.590393]
[1751964897057,0.6757,2548.9,2548.8,3.590393]
[1751964898457,0.6757,2548.9,2548.8,4.233493]
[1751964898753,2.44812,2548.9,2548.8,1.2818]
[1751964899055,2.44812,2548.9,2548.7,0.78465]
[1751964899056,0.78467,2548.8,2548.7,0.78465]
[1751964899953,0.78467,2548.8,2548.7,1.42335]
[1751964901052,0.78467,2548.8,2548.7,0.6387]
[1751964901254,32.27230971,2548.8,2548.7,0.6387]
[1751964901454,33.61120971,2548.8,2548.7,0.6387]
[1751964902361,0.78471,2548.6,2548.5,0.78473]
[1751964902556,27.45171,2548.6,2548.5,0.78473]
[1751964902759,29.07654971,2548.6,2548.5,0.78473]
[1751964902956,30.45204971,2548.6,2548.5,1.42343]
[1751964904162,0.78474,2548.5,2548.4,0.78475]
[1751964904359,3.82374,2548.5,2548.4,0.78475]
[1751964904860,0.78477,2548.4,2548.3,1.42787]
[1751964905059,28.12347,2548.4,2548.3,1.42787]
[1751964905256,29.11127,2548.4,2548.3,1.42787]
[1751964905762,29.11127,2548.4,2548.3,2.06657]
[1751964905963,29.11127,2548.4,2548.3,1.42787]
[1751964906159,29.11127,2548.4,2548.3,2.06657]
[1751964906357,28.12347,2548.4,2548.3,1.42787]
[1751964906557,28.12347,2548.4,2548.3,2.06657]
[1751964909364,27.3387,2548.4,2548.3,2.06657]
[1751964911066,3.2078,2548.6,2548.5,0.78474]
[1751964911261,1.62542035,2548.6,2548.5,2.48444]
[1751964911462,26.656,2548.8,2548.7,0.78468]
[1751964911764,0.78474,2548.6,2548.5,0.78472]
[1751964911960,26.699,2548.6,2548.5,1.42342]
[1751964912162,27.48371,2548.6,2548.5,0.78472]
[1751964912362,27.48371,2548.6,2548.5,1.42342]
[1751964915267,29.14721,2548.6,2548.5,0.78472]
[1751964915661,29.14721,2548.6,2548.5,1.42342]
[1751964916568,28.3625,2548.6,2548.5,1.42342]
[1751964916966,29.14721,2548.6,2548.5,1.42342]
[1751964918269,28.3625,2548.6,2548.5,1.42342]
[1751964918468,29.14721,2548.6,2548.5,1.42342]
[1751964919474,28.3625,2548.6,2548.5,1.42342]
[1751964920667,27.3747,2548.6,2548.5,3.590463]
[1751964925070,28.15941,2548.6,2548.5,3.590463]
[1751964925473,27.3747,2548.6,2548.5,3.590463]
[1751964925863,27.3446,2548.6,2548.5,3.590463]
[1751964926872,26.699,2548.6,2548.5,3.590463]
[1751964927074,27.3446,2548.6,2548.5,3.590463]
[1751964928473,28.97174879,2548.6,2548.5,3.590463]
[1751964929071,29.75645879,2548.6,2548.5,3.590463]
[1751964929671,30.78945879,2548.6,2548.5,3.590463]
[1751964930372,30.78945879,2548.6,2548.5,1.42342]
[1751964930872,32.08825879,2548.6,2548.5,1.42342]
[1751964931780,31.30354879,2548.6,2548.5,1.42342]
[1751964931974,30.00474879,2548.6,2548.5,1.42342]
[1751964932176,28.97174879,2548.6,2548.5,1.42342]
[1751964932476,28.97174879,2548.6,2548.5,3.590463]
[1751964933070,29.75645879,2548.6,2548.5,3.590463]
[1751964933468,28.97174879,2548.6,2548.5,3.590463]
[1751964933967,30.00474879,2548.6,2548.5,3.590463]
[1751964936276,30.78945879,2548.6,2548.5,3.590463]
[1751964936979,30.00474879,2548.6,2548.5,3.590463]
[1751964937980,30.78945879,2548.6,2548.5,3.590463]
[1751964938179,30.00474879,2548.6,2548.5,3.590463]
[1751964939076,28.97174879,2548.6,2548.5,3.590463]
[1751964942479,30.78945879,2548.6,2548.5,3.590463]
[1751964942779,29.75645879,2548.6,2548.5,3.590463]
[1751964942983,28.97174879,2548.6,2548.5,3.590463]
[1751964944977,2.27274879,2548.6,2548.5,3.590463]
[1751964945184,28.92474879,2548.6,2548.5,4.650463]
[1751964945384,28.92673415,2548.6,2548.5,4.650463]
[1751964946182,28.92673415,2548.6,2548.5,3.590463]
[1751964948485,28.92473415,2548.6,2548.5,4.650463]
[1751964948684,1.62913415,2548.6,2548.5,2.48342]
[1751964948889,14.4672,2549.1,2549.0,0.78459]
[1751964948890,15.63410646,2549.1,2549.0,0.78459]
[1751964949079,7.82643165,2549.1,2549.0,1.48859]
[1751964949277,32.13669519,2549.1,2549.0,1.48859]
[1751964949577,30.5074,2549.1,2549.0,0.78459]
[1751964949780,32.13649418,2549.1,2549.0,1.48859]
[1751964950377,32.92105418,2549.1,2549.0,3.655633]
[1751964950783,33.95405418,2549.1,2549.0,3.655633]
[1751964950979,32.32496,2549.1,2549.0,3.655633]
[1751964951182,33.16849494,2549.1,2548.6,4.128823]
[1751964951381,0.78464,2548.9,2548.8,0.78462]
[1751964951582,30.76503494,2548.9,2548.8,0.78462]
[1751964951782,32.12403494,2548.9,2548.8,0.78462]
[1751964955189,31.33939494,2548.9,2548.8,1.43232]
[1751964955788,29.98039494,2548.9,2548.8,2.951663]
[1751964955985,30.76501494,2548.9,2548.8,3.599363]
[1751964956181,29.13692,2548.9,2548.8,3.599363]
[1751964956393,28.3523,2548.9,2548.8,3.599363]
[1751964957495,0.78465,2548.8,2548.7,0.78468]